Cogmind - Beta 15 @@@ ROGUE MODE // 2025.09.23 @ 20:32:23 Player: bluemonk Result: Destroyed by Y-54 Guardian with Flak Gun Performance ------------- Evolutions (4) 2000 Regions Visited (6) 1200 Robots Destroyed (76) 380 Value Destroyed (2024) 2024 Prototype IDs (9) 180 Alien Tech Used (0) 0 Bonus (94) 94 TOTAL SCORE: 5878 Bonus ------- Follower Combat Kills 112 Friendly Fire -18 Cogmind --------- Core Integrity 0/850 Matter 269/300 Energy 100/100 System Corruption 2% Temperature Warm (114) Movement Core (200) Ox3 Location -6/Factory Parts ------- > --- POWER (2) -------- (None) > --- PROPULSION (5) --- (None) > --- UTILITY (6) ------ Medium Storage Unit Machine Analyzer > --- WEAPON (2) ------- (None) > --- INVENTORY (10) --- Advanced Heat Sink Peak State ------------ > --- POWER ------------ Fission Core Fission Core > --- PROPULSION ------- Medium Treads Aluminum Leg Carbon-fiber Leg Carbon-fiber Leg Titanium Leg > --- UTILITY ---------- Medium Storage Unit Advanced Sensor Array Improved Terrain Scanner Recoil Stabilizer Medium Reactive Plating Field Recycling Unit > --- WEAPON ----------- Heavy Plasma Cannon Gauss Rifle > --- INVENTORY -------- Nuclear Core Improved Deuterium Engine Advanced Heat Sink Machine Analyzer Improved Light Armor Plating Heavy EM Shotgun Advanced Beam Cannon [Rating: 53] Favorites ----------- Power Heavy Ion Engine Engine Heavy Ion Engine Power Core Fission Core Propulsion Aluminum Leg Treads Light Treads Leg Aluminum Leg Utility Medium Storage Unit Device Field Recycling Unit Storage Medium Storage Unit Processor Visual Processing Unit Protection Improved Light Armor Plating Weapon Improved Assault Rifle Energy Gun Improved EM Shotgun Energy Cannon Light EM Pulse Cannon Ballistic Gun Improved Assault Rifle Build | -11 -10 -10 -9 -8 -7 -6 ------- Run | Yrd Mat Min Mat Mat Fac Fac Slots Evolved 8 | . . . 2 2 2 2 Power 1 | . . . . . 1 . Propulsion 3 | . . . 1 . . 2 Utility 4 | . . . 1 2 1 . Weapon . | . . . . . . . Parts Attached 57 | 6 3 . 13 11 4 20 Power 10 | 1 . . 3 . 2 4 Engine 7 | 1 . . 3 . 2 1 Core 3 | . . . . . . 3 Reactor . | . . . . . . . Propulsion 14 | 2 . . 3 5 . 4 Treads 4 | . . . 3 . . 1 Leg 10 | 2 . . . 5 . 3 Wheel . | . . . . . . . Hover . | . . . . . . . Flight . | . . . . . . . Utility 16 | 1 3 . 1 4 2 5 Device 8 | . 1 . 1 2 1 3 Storage 2 | 1 1 . . . . . Processor 2 | . 1 . . . . 1 Hackware . | . . . . . . . Protection 4 | . . . . 2 1 1 Artifact . | . . . . . . . Weapon 17 | 2 . . 6 2 . 7 Energy Gun 8 | 2 . . 2 1 . 3 Energy Cannon 3 | . . . 1 . . 2 Ballistic Gun 6 | . . . 3 1 . 2 Ballistic Cannon . | . . . . . . . Launcher . | . . . . . . . Special Weapon . | . . . . . . . Impact Weapon . | . . . . . . . Slashing Weapon . | . . . . . . . Piercing Weapon . | . . . . . . . Special Melee Weapon . | . . . . . . . Unidentified Prototypes 2 | . . . . . . 2 Parts Lost 32 | . . . 3 3 . 26 Power 6 | . . . 1 . . 5 Propulsion 10 | . . . 1 1 . 8 Utility 9 | . . . . 1 . 8 Weapon 7 | . . . 1 1 . 5 Highest Loss Streak 15 | . . . 2 2 . 15 To Critical Strikes . | . . . . . . . Average Backups 8 | 2 8 10 8 9 9 6 Power 1 | . 1 2 1 1 1 1 Propulsion 2 | 1 3 3 2 3 3 . Utility 2 | . 2 3 2 2 2 2 Weapon 1 | . 1 2 1 1 2 1 Tool/Special . | . . . . . . . Unused Backups 20 | . 2 . 5 10 . 3 Power 4 | . . . 1 2 . 1 Propulsion 5 | . 2 . . 3 . . Utility 4 | . . . 1 1 . 2 Weapon 7 | . . . 3 4 . . Tool/Special . | . . . . . . . Average Slot Usage (%) 97 | . 99 100 99 99 99 92 Engine 9 | . 14 14 11 9 15 3 Core 2 | . . . . . . 9 Treads 8 | . . . 16 9 . 3 Leg 20 | . 28 28 16 17 23 24 Device 15 | . 2 . 11 17 22 22 Storage 9 | . 14 14 11 9 7 6 Processor 8 | . 11 14 11 9 7 2 Protection 4 | . . . . 9 7 5 Energy Gun 8 | . 27 28 8 6 7 1 Energy Cannon 3 | . . . 9 . . 4 Ballistic Gun 6 | . . . 3 11 7 5 Peak Build Rating 53 | 6 9 9 18 32 40 53 Average Rating 26 | 5 8 9 14 24 38 47 On Entrance 16 | . 6 9 9 18 32 39 Naked Turns . | . . . . . . . Heaviest Build 75 | 14 19 19 26 40 46 75 Greatest Support 67 | 20 20 20 60 60 47 67 Greatest Overweight (x) 9 | . . . 2 1 . 9 Average Overweight (x) . | . . . . . . 1 Largest Inventory Capacity 10 | 8 10 10 10 10 10 10 Average Capacity 9 | 7 9 10 10 10 10 10 Most Carried 10 | 6 10 10 10 10 10 10 Average Carried 8 | 2 9 10 8 9 9 6 Final Capacity 10 | 8 10 10 10 10 10 10 Final Carried 10 | 6 10 10 10 10 10 1 Class Distribution -------------------- 72% | Mutant 26% | Scavenger-Mutant Dominant Class ---------------- Mutant | -10/Materials Mutant | -10/Mines Mutant | -9/Materials Mutant | -8/Materials Scavenger-Mutant | -7/Factory Scavenger-Mutant | -6/Factory Resources | -11 -10 -10 -9 -8 -7 -6 ----------- Run | Yrd Mat Min Mat Mat Fac Fac Matter Collected 1224 | 220 80 . 156 327 . 441 Remotely . | . . . . . . . Salvage Created 3020 | . 305 48 545 1069 . 1053 Parts 157 | . 22 4 33 56 . 42 Haulers Intercepted 10 | . 2 . 5 3 . . Recyclers Shooed 7 | . . . 1 3 . 3 Parts Field Recycled 70 | . . . . 45 12 13 Retrieved Matter 406 | . . . . 268 84 54 Parts Self-Destructed . | . . . . . . . Prevented . | . . . . . . . Kills | -11 -10 -10 -9 -8 -7 -6 ------- Run | Yrd Mat Min Mat Mat Fac Fac Combat Hostiles Destroyed 47 | . 7 3 7 14 . 16 Guns 33 | . 7 3 3 13 . 7 Cannons 7 | . . . 1 . . 6 AOE 6 | . . . 3 1 . 2 Classes Destroyed 14 | . 5 . 1 4 . 4 Worker 4 | . 1 . . . . 3 Builder 4 | . . . . 3 . 1 Tunneler 1 | . . . . 1 . . Hauler 10 | . 2 . 5 3 . . Recycler 1 | . . . . . . 1 Operator 1 | . . . . 1 . . Watcher 7 | . 3 . 1 2 . 1 Swarmer 18 | . 6 3 4 . . 5 Grunt 20 | . 1 . 2 10 . 7 Brawler 1 | . . . . . . 1 Duelist 1 | . . . . . . 1 Sentry 6 | . . . 2 3 . 1 Hunter 1 | . . . . 1 . . Programmer 1 | . . . . . . 1 Best Kill Streak 7 | . 5 3 3 3 . 7 Combat Bots Only 5 | . 3 3 3 2 . 5 Max Kills in Single Turn 3 | . 2 1 3 2 . 3 Gunslinging 1 | . 1 . . . . . Exploded 3 | . . . 3 1 . 2 Melee . | . . . . . . . Uniques/NPCs Destroyed . | . . . . . . . Combat | -11 -10 -10 -9 -8 -7 -6 -------- Run | Yrd Mat Min Mat Mat Fac Fac Hostile Shots Fired 557 | . 23 12 53 110 . 359 Missed 161 | . 8 3 19 32 . 99 Hits 396 | . 15 9 34 78 . 260 Melee 2 | . . . . . . 2 Projectile 394 | . 15 9 34 78 . 258 Critical Strikes 13 | . . . 1 4 . 8 Damage Taken 4636 | . 150 68 364 997 . 3057 Core 1042 | . 32 18 30 108 . 854 Absorbed by Shields 252 | . . . . 207 . 45 Regen/Repaired (Parts) 29 | . 29 . . . . . Core Remaining (%) 90 | 100 . 80 92 80 100 . Volleys Fired 269 | . 15 5 45 106 . 98 Largest 2 | . 2 2 2 2 . 2 Hottest 158 | . 90 90 101 68 . 158 Shots Fired 472 | . 30 10 80 191 . 161 Gun 368 | . 30 10 35 191 . 102 Cannon 104 | . . . 45 . . 59 Launcher . | . . . . . . . Special . | . . . . . . . Kinetic 219 | . . . 12 140 . 67 Thermal 114 | . 15 5 . . . 94 Explosive . | . . . . . . . Electromagnetic 139 | . 15 5 68 51 . . Robot Hit Streak 11 | . 8 6 11 11 . 5 Robot Miss Streak 8 | . 1 3 3 4 . 8 Penetration Max 1 | . . . . . . 1 Secondary Targets 8 | . 4 1 . 2 . 1 Max Gunslinging Chain 1 | . 1 1 . 1 . 1 Shots Hit Robots 286 | . 21 6 54 122 . 83 Core Hits 145 | . 15 3 19 51 . 57 Critical Kills 3 | . . . . 1 . 2 Critical Parts Destroyed 3 | . . . . . . 3 Critical Strikes 7 | . 1 . . 1 . 5 Burn 1 | . 1 . . . . . Meltdown 1 | . . . . . . 1 Destroy 5 | . . . . 1 . 4 Melee Attacks . | . . . . . . . Impact . | . . . . . . . Slashing . | . . . . . . . Piercing . | . . . . . . . Sneak Attacks . | . . . . . . . Combat Hostiles . | . . . . . . . Follow-up Attacks . | . . . . . . . Damage Inflicted 6300 | . 335 73 1225 2145 . 2522 Guns 3939 | . 263 72 378 1870 . 1356 Cannons 1509 | . . . 690 . . 819 Explosions 851 | . 72 . 157 275 . 347 Melee . | . . . . . . . Ramming 1 | . . 1 . . . . Kinetic 2437 | . . . 129 1328 . 980 Thermal 1836 | . 171 38 157 275 . 1195 Explosive 72 | . . . . . . 72 Electromagnetic 1954 | . 164 34 939 542 . 275 Impact . | . . . . . . . Slashing . | . . . . . . . Piercing . | . . . . . . . Highest Corruption 2 | . . . . . . 2 Average Corruption 1 | . . . . . . 1 Corruption Purged . | . . . . . . . Corruption Blocked . | . . . . . . . Effects 6 | . . . . . . 6 Message Errors 2 | . . . . . . 2 Matter Fused 3 | . . . . . . 3 Data Loss (major) 1 | . . . . . . 1 Overload Shots . | . . . . . . . Overflow Damage 6 | . . . . 6 . . Projectiles . | . . . . . . . Explosions 6 | . . . . 6 . . Melee . | . . . . . . . Knockbacks . | . . . . . . . Impact . | . . . . . . . Kinetic . | . . . . . . . Secondary . | . . . . . . . Self-Inflicted Damage 31 | . 31 . . . . . Shots 1 | . 1 . . . . . Rammed . | . . . . . . . Targets Rammed 1 | . . 1 . . . . Kicked 1 | . . 1 . . . . Crushed . | . . . . . . . Highest Temperature 688 | . 150 150 187 274 . 688 Average Temperature 142 | . 59 75 43 85 . 216 Received Heat Transfer 1715 | . 6 . 105 515 . 1089 Effects 84 | . . . . 7 . 77 Shutdowns 21 | . . . . . . 21 Energy Bleed 9 | . . . . 1 . 8 Interference 26 | . . . . 6 . 20 Matter Decay 5 | . . . . . . 5 Short Circuit 7 | . . . . . . 7 Damage (minor) 6 | . . . . . . 6 Damage (major) 7 | . . . . . . 7 Damage (core) 3 | . . . . . . 3 Siege Activations . | . . . . . . . Martial Activations . | . . . . . . . Shielding Activations . | . . . . . . . Robots Disrupted . | . . . . . . . Combat Hostiles . | . . . . . . . Robots Corrupted 3 | . . . 3 . . . Combat Hostiles . | . . . . . . . Parts Fried 8 | . . . 6 1 . 1 Impact Corruptions . | . . . . . . . Robots Melted 1 | . . . . . . 1 Combat Hostiles 1 | . . . . . . 1 Parts Melted 6 | . 1 . . . . 5 Heat Transferred 3063 | . 420 111 150 300 . 2082 Parts Sabotaged . | . . . . . . . Parts Stolen . | . . . . . . . Parts Stripped . | . . . . . . . Power Chain Reactions 8 | . 1 . 2 5 . . Alert | -11 -10 -10 -9 -8 -7 -6 ------- Run | Yrd Mat Min Mat Mat Fac Fac Maximum Alert Level 1 | . . . . . . 1 Low Security (%) 93 | 100 100 100 100 100 100 72 Level 1 6 | . . . . . . 27 Level 2 . | . . . . . . . Level 3 . | . . . . . . . Level 4 . | . . . . . . . Level 5 . | . . . . . . . High Security . | . . . . . . . Max Security . | . . . . . . . Peak Influence 296 | . 124 70 107 139 45 296 Initial 45 | . . 25 11 2 45 . Average 68 | . 71 32 32 53 8 154 Influence Increases 1983 | . 222 70 451 521 . 719 Destroy 0b10 Robot/C 1100 | . 140 60 280 280 . 340 Destroy 0b10 Robot/NC 145 | . 30 . 35 50 . 30 Destroy Leader 256 | . 30 10 74 80 . 62 Allied During Kill 19 | . . . 17 . . 2 Successful Hack 59 | . 17 . 10 . . 32 Disable Machine 240 | . . . 30 45 . 165 Destroy Structure 44 | . 5 . 5 21 . 13 Lose Combat Pursuer 120 | . . . . 45 . 75 Influence Decreases 1960 | . 155 107 474 428 100 696 Entered New Map 121 | . . 42 19 5 55 . Time Decay 1469 | . 155 65 395 393 45 416 Lost Part 310 | . . . 20 30 . 260 Lost Ally 60 | . . . 40 . . 20 Squads Dispatched 12 | . 1 . 1 2 1 7 Investigation 4 | . 1 . 1 1 . 1 Extermination 3 | . . . . . 1 2 Reinforcement 1 | . . . . 1 . . Assault . | . . . . . . . Garrison 4 | . . . . . . 4 Intercept . | . . . . . . . Searches Triggered . | . . . . . . . Construction Impeded . | . . . . . . . Haulers Reinforced . | . . . . . . . Active Scanning Responses . | . . . . . . . Cargo Convoy Interrupts . | . . . . . . . Stealth | -11 -10 -10 -9 -8 -7 -6 --------- Run | Yrd Mat Min Mat Mat Fac Fac Distress Signals 7 | . 2 . 2 . . 3 Communications Jammed . | . . . . . . . Distress Signals . | . . . . . . . Times Spotted 86 | . 10 3 17 26 . 30 Peak Tracking Total 6 | . 6 3 5 5 . 4 Tactical Retreats 7 | . . . . 3 . 4 Traps | -11 -10 -10 -9 -8 -7 -6 ------- Run | Yrd Mat Min Mat Mat Fac Fac Traps Triggered 5 | . 1 . . 1 2 1 Indirectly 1 | . . . . . . 1 Trap Hack Attempts . | . . . . . . . Triggered . | . . . . . . . Disarmed . | . . . . . . . Reprogrammed . | . . . . . . . Reused . | . . . . . . . Traps Extracted . | . . . . . . . Installed . | . . . . . . . Triggered . | . . . . . . . Machines | -11 -10 -10 -9 -8 -7 -6 ---------- Run | Yrd Mat Min Mat Mat Fac Fac Machines Disabled 16 | . . . 2 3 . 11 Max in Single Turn 4 | . . . 1 1 . 4 Machines Repaired . | . . . . . . . Machines Dismantled . | . . . . . . . Machines Sabotaged . | . . . . . . . Overloaded Fab Kills . | . . . . . . . Hacking | -11 -10 -10 -9 -8 -7 -6 --------- Run | Yrd Mat Min Mat Mat Fac Fac Machines Accessed 20 | . 5 . 5 6 . 4 Terminals 12 | . 3 . 3 4 . 2 Fabricators 1 | . . . . . . 1 Repair Stations 2 | . 1 . 1 . . . Recycling Units 2 | . 1 . . 1 . . Scanalyzers 2 | . . . 1 1 . . Garrison Access 1 | . . . . . . 1 Total Hacks 54 | . 14 . 17 17 . 6 Successful 36 | . 11 . 11 11 . 3 Failed 18 | . 3 . 6 6 . 3 Catastrophic 2 | . . . . . . 2 Database Lockouts . | . . . . . . . Manual 1 | . . . . . . 1 Terminals 35 | . 10 . 12 11 . 2 Fabricators 3 | . . . . . . 3 Repair Stations 4 | . 2 . 2 . . . Recycling Units 3 | . 2 . . 1 . . Scanalyzers 8 | . . . 3 5 . . Garrison Access 1 | . . . . . . 1 Terminal Hacks 20 | . 7 . 7 6 . . Robot Analysis 1 | . 1 . . . . . Prototype ID Bank 2 | . 1 . . 1 . . Emergency Access Points 2 | . 2 . . . . . Terminal Index 1 | . . . 1 . . . Alert Level 6 | . 1 . 1 4 . . Locate Traps 1 | . 1 . . . . . Dispatch Records 1 | . . . 1 . . . Maintenance Status 3 | . 1 . 1 1 . . Hauler Manifests 2 | . . . 2 . . . Zone Layout 1 | . . . 1 . . . Fabricator Hacks 2 | . . . . . . 2 Load Schematic 1 | . . . . . . 1 Build 1 | . . . . . . 1 Repair Station Hacks 3 | . 2 . 1 . . . Scan Component 2 | . 1 . 1 . . . Repair 1 | . 1 . . . . . Recycling Unit Hacks 3 | . 2 . . 1 . . Report Inventory 2 | . 1 . . 1 . . Retrieve Matter 1 | . 1 . . . . . Scanalyzer 7 | . . . 3 4 . . Insert Component 4 | . . . 2 2 . . Analyze 3 | . . . 1 2 . . Garrison Access Hacks . | . . . . . . . Unauthorized Hacks 1 | . . . . . . 1 Terminals . | . . . . . . . Fabricators . | . . . . . . . Repair Stations . | . . . . . . . Recycling Units . | . . . . . . . Scanalyzers . | . . . . . . . Garrison Access 1 | . . . . . . 1 Reprogram 1 | . . . . . . 1 Data Cores Recovered . | . . . . . . . Used . | . . . . . . . Hacking Detections 19 | . 4 . 5 6 . 4 Full Trace Events . | . . . . . . . Feedback Events . | . . . . . . . Feedback Blocked . | . . . . . . . Robot Schematics Acquired . | . . . . . . . Robots Built . | . . . . . . . Authchips . | . . . . . . . Time . | . . . . . . . Total Robot Build Rating . | . . . . . . . Part Schematics Acquired 3 | . . . 1 2 . . Parts Built 2 | . . . . . . 2 Authchips . | . . . . . . . Time 47 | . . . . . . 47 Total Part Build Rating 10 | . . . . . . 10 Parts Repaired 1 | . 1 . . . . . Time 13 | . 13 . . . . . Parts Recycled . | . . . . . . . Recycled Matter . | . . . . . . . Retrieved Matter . | . . . . . . . Retrieved Components . | . . . . . . . Parts Scanalyzed 3 | . . . 1 2 . . Part Schematics Acquired 3 | . . . 1 2 . . Parts Damaged . | . . . . . . . Bothacking | -11 -10 -10 -9 -8 -7 -6 ------------ Run | Yrd Mat Min Mat Mat Fac Fac Used RIF Installer . | . . . . . . . Robots Hacked . | . . . . . . . Non-combat . | . . . . . . . Combat . | . . . . . . . Robot Hacks Applied . | . . . . . . . Relay Couplers Released . | . . . . . . . Fabnet Peak Effective % . | . . . . . . . Robots Rewired . | . . . . . . . Allies Hacked . | . . . . . . . Hacks Repelled . | . . . . . . . Allies | -11 -10 -10 -9 -8 -7 -6 -------- Run | Yrd Mat Min Mat Mat Fac Fac Total Allies 4 | . . 3 . . . 1 Largest Group 3 | . . 3 3 . . 1 Highest-Rated Group 40 | . . 40 40 . . 29 Highest-Rated Ally 29 | . . 16 16 . . 29 Total Orders . | . . . . . . . Ally Attacks 37 | . . . 26 . . 11 Total Damage 416 | . . . 304 . . 112 Kills 9 | . . . 8 . . 1 Allies Corrupted . | . . . . . . . Allies Melted . | . . . . . . . Intel | -11 -10 -10 -9 -8 -7 -6 ------- Run | Yrd Mat Min Mat Mat Fac Fac Active Infowar (turns) 4488 | . 340 157 1302 1356 286 1047 Optics 3630 | . 282 157 1302 1354 286 249 Sensors 2356 | . . . 1302 396 . 658 Terrain 1059 | . . . . . 285 774 Machine Analysis 196 | . . . . . . 196 ECM 58 | . 58 . . . . . Robot Analysis Total 1 | . 1 . . . . . Derelict Logs Recovered 1 | . . 1 . . . . Drone Launches . | . . . . . . . Drone Recoveries . | . . . . . . . Exploration | -11 -10 -10 -9 -8 -7 -6 ------------- Run | Yrd Mat Min Mat Mat Fac Fac Turns Passed 4719 | 80 348 157 1302 1414 286 1132 Spaces Moved 2267 | 58 228 114 631 685 218 333 Core 7 | 5 . . . . . 2 Treads 410 | . . . 226 184 . . Legs 1850 | 53 228 114 405 501 218 331 Wheels . | . . . . . . . Hover . | . . . . . . . Flight . | . . . . . . . Fastest Speed 50 | 50 120 120 120 123 123 122 Average Speed 160 | 113 120 120 177 146 123 232 Slowest Speed 500 | 120 120 120 260 190 123 500 Overloaded Moves . | . . . . . . . Propulsion Burnouts . | . . . . . . . Robots Hopped . | . . . . . . . Potential Cave-ins . | . . . . . . . Cave-ins Triggered . | . . . . . . . Exploration Rate (%) 25 | 4 44 33 48 33 6 8 Regions Visited 6 Branch Regions 1 Pre-discovered Areas . | . . . . . . . Known Exits Taken . | . . . . . . . Unknown Exits Taken 6 | 1 1 1 1 1 1 . Scrap Searched 1 | . . 1 . . . . Spaces Dug . | . . . . . . . Terrain Destroyed 36 | . 5 . 5 14 . 12 Melee . | . . . . . . . Projectile 8 | . . . . . . 8 AOE 28 | . 5 . 5 14 . 4 Terrain Rammed . | . . . . . . . Walls Destroyed . | . . . . . . . Machines Disabled . | . . . . . . . Actions | -11 -10 -10 -9 -8 -7 -6 --------- Run | Yrd Mat Min Mat Mat Fac Fac Total 2874 | 69 273 124 733 909 234 532 Wait 169 | . 16 5 24 67 6 51 Move 2261 | 57 227 113 630 684 217 333 Hop . | . . . . . . . Pick Up 60 | 6 7 . 11 19 3 14 Fast Attach 16 | 6 2 . 2 1 2 3 Attach 26 | . . . 5 5 2 14 Detach . | . . . . . . . Swap 27 | . 2 . 6 8 3 8 Drop 45 | . 4 . 10 19 1 11 Fire 269 | . 15 5 45 106 . 98 Melee . | . . . . . . . Ram . | . . . . . . . Kick 1 | . . 1 . . . . Crush . | . . . . . . . Escape Stasis . | . . . . . . . Rewire . | . . . . . . . Trap . | . . . . . . . Miscellaneous . | . . . . . . . Route ------- -11/Scrapyard -10/Materials (discovered 4 exits: *Mat x2 / [*Min x2]) -10/Mines -9/Materials -8/Materials -7/Factory -6/Factory History --------- Turn | Location | Event 9 | -11/Scrapyard | Discovered new exit (range 16) 81 | -11/Scrapyard | Entered Materials 81 | -10/Materials | Discovered new exit (range 17) 113 | -10/Materials | Discovered new exit (range 15) 192 | -10/Materials | Discovered new exit (range 18) 236 | -10/Materials | Repaired EM Pulse Gun 314 | -10/Materials | Build established: Mutant 392 | -10/Materials | Discovered new exit (range 8) 429 | -10/Materials | Entered Mines 514 | -10/Mines | Assisted by bots powering up and referring to "LRC-V3" 515 | -10/Mines | Learned Materials terminal intel 559 | -10/Mines | Discovered new exit (range 17) 580 | -10/Mines | Assembled infested the area 586 | -10/Mines | Entered Materials 586 | -9/Materials | Accompanied by 3 allies 586 | -9/Materials | Evolved 2 slots: Propulsion x1, Utility x1 587 | -9/Materials | Loaded intel: 12 terminal locations 1427 | -9/Materials | Discovered new exit (range 17) 1888 | -9/Materials | Entered another Materials area 1888 | -8/Materials | Evolved 2 slots: Utility x2 3255 | -8/Materials | Discovered new exit (range 18) 3302 | -8/Materials | Entered Factory 3302 | -7/Factory | Evolved 2 slots: Power x1, Utility x1 3508 | -7/Factory | Discovered new exit (range 11) 3588 | -7/Factory | Entered another Factory area 3588 | -6/Factory | Evolved 2 slots: Propulsion x2 3610 | -6/Factory | Build established: Scavenger-Mutant 3669 | -6/Factory | Fabricated Fission Core (x2) 3797 | -6/Factory | Garrison activated, responded to threat 3841 | -6/Factory | Lost 4 parts (2n2u) 4303 | -6/Factory | Garrison activated, responded to threat 4400 | -6/Factory | Core integrity fell below 50% 4480 | -6/Factory | Lost 3 parts (2n1u) 4560 | -6/Factory | Garrison activated, responded to threat 4705 | -6/Factory | Core integrity fell below 20% 4720 | -6/Factory | Destroyed by Y-54 Guardian with Flak Gun Last Messages --------------- Hvy. Laser destroyed. Field Recycling Unit destroyed. Med. Treads destroyed. K-01 Serf collects debris. Imp. Deuterium Engine destroyed. Fission Core destroyed. K-01 Serf collects debris. Carbon-fiber Leg destroyed. K-01 Serf collects debris. Hvy. Laser destroyed. Adv. Heat Sink destroyed. K-01 Serf collects debris. Overheating: System interference. Minigun temporarily disabled. Machine Analyzer temporarily disabled. R-10 Processor collects Machine Analyzer. Lgt. Angular Momentum Engine destroyed. Minigun destroyed. Mic. Nuclear Core destroyed. R-10 Processor collects Wheel. Map ----- +----------------------------------------------------+ | ?????????????????????????????????????????????????? | | ?????????????????????????????????????????????????? | | ????????""""?""""????????????????????????????????? | | ????????""""?""""????????????????????????????????? | | ????????""""?""""????????????????????????????????? | | ????????""""?""""????????????????????????????????? | | ?????????????????????????????????????????????????? | | ????????""""?""""????????????????????????????????? | | ????????""""?""""????????????????????????????????? | | ????????""""?""""????????????????????????????????? | | ????????""""?""""???????? ???????????????????????? | | ????????????????????????????#????????????????????? | | ????????????????????????#????????????????????????? | | ?????????????????????#????###?????"??????????????? | | ?????????????????????????? #??? ???????????????? | | ?????????????""???????"""? ????????????????????? | | ?????????????""???????""" ????????????????? ??? | | """"""???????F"???????""" ? ?????????????? ?? | | """"""???????""??????? ??????????????? ## | | """"""????????????????""" ??????????????# #? | | """"""????????????????""" ?????????????# #? | | ????????????????????#?""" ??#????????????# #? | | """"""?"""""" ???????? ? ?????????####??# #? | | """"""?"""""" ##########+###########T #### ## | | """"""?"""""" u kk g # | | """"""?"""""" w @ # | | ????????? # | | ???????"""""" R % %= # | | ???????"""""" %=Y u[%* # | | ???????"""""" #########Y########### # | | ???????""""""?????# %% #?### # | | ??????????????????# #??## # | | """"""?""""""?????# * #???# + | | """"""?""""""?????# % #???# # | | """"""?""""""?????# """ #???# # | | """"""?""""""?????# """" #???# # | | ??????????????????# """" ""#??## ######## | | ??????????????????# """" ""#???# # # | | ??????????????????# """" G#?#?# # """ # | | ??????????????????# """" ""#??## + """ # | | ??????????????????# """" ""##?## # """ # | | ??????????????????# #???# # ## | | ??????????????????###############??# # #? | | ??????????????????????????#????#??###### # #? | | ??????????????????????????????????????## # ""#? | | ????????????????????????????????????#??# # ""#? | | ???????????????????????????????????#???# # T"#? | | ?????????????????????????????????????#?# # ""#? | | ?????????????????????????????#?????????# # ""## | | ????????????????????????????????????#??# # ## | +----------------------------------------------------+ Best States ------------- Heat Dissipation 56 Energy Generation 31 Energy Capacity 520 Matter Stores 300 Matter Capacity 300 Sight Range 18 Robot Scan Range 16 Terrain Scan Range 16 Terrain Scan Density 10 ECM Strength 1 Armor Coverage 225 Resistance: KI 30 Evasion (%) 55 Recoil Reduction 4 Item Schematics ----------------- Imp. EM Shotgun | -9/Materials | Scanalyzed Hvy. Particle Gun | -8/Materials | Scanalyzed Aluminum Leg | -8/Materials | Scanalyzed Robot Schematics ------------------ None Fabricated ------------ Fission Core | x2 | -6/Factory | Preloaded Repaired ---------- EM Pulse Gun | 35% | -10/Materials Alien Tech Used ----------------- None Achievements -------------- None Challenges ------------ None Game ------ Seed DeflectorSchematicModule Manual? 0 Play Time 01:09:33 Cumulative 39.8 hours Start 2025.09.23 @ 19:20:11 End 2025.09.23 @ 20:32:23 Sessions 1 Manual Loads 0 Difficulty Rogue Special Mode None Game No. 63 Rogue 63 Adventurer 0 Explorer 0 Win Type - Total 0 Types 0/0/0/0/0/0/0/0/0/0 Lore% 20 Gallery% 32 Achievement% 27 Wizard Run 0 Options --------- Layout 1 ASCII 0 Keyboard 0 Movement Numpad Keybinds 0 Fullscreen 1 Font 24/Smallcaps Map View 50x35 Zoom Use 0% Tactical HUD 0 Map Filters NONE Filters NONE Steam 1 RUN: 3ccb78bf-c370-452c-be2f-9de920b5b3f5